[Event "Titled Tuesday Blitz June 27 Early 2023"]
[White "Weishaeutel, Moritz"]
[Black "Ohanyan, Emin"]
[WhiteFideId "12967300"]
[BlackFideId "13312022"]
[WhiteElo "2647"]
[BlackElo "2804"]
[Result "1-0"]
[Round "10"]
[TimeControl "180+2"]
[Date "2023.06.27"]
[WhiteClock "0:00:08"]
[BlackClock "0:00:02"]
[Board "36"]

1. e4 {[%clk 0:03:00]}  e5 {[%clk 0:02:58]} 2. Nf3 {[%clk 0:03:00]}  Nc6 {[%clk 0:02:58]} 3. c3 {[%clk 0:03:01]}  Nf6 {[%clk 0:02:58]} 4. d4 {[%clk 0:03:01]}  exd4 {[%clk 0:02:59]} 5. e5 {[%clk 0:03:02]}  Nd5 {[%clk 0:03:00]} 6. Qb3 {[%clk 0:03:00]}  Nb6 {[%clk 0:02:54]} 7. cxd4 {[%clk 0:03:01]}  d6 {[%clk 0:02:55]} 8. Nc3 {[%clk 0:02:52]}  dxe5 {[%clk 0:02:50]} 9. dxe5 {[%clk 0:02:52]}  Be6 {[%clk 0:02:47]} 10. Qc2 {[%clk 0:02:46]}  Be7 {[%clk 0:02:27]} 11. Bb5 {[%clk 0:02:45]}  O-O {[%clk 0:02:25]} 12. Bxc6 {[%clk 0:02:46]}  bxc6 {[%clk 0:02:26]} 13. O-O {[%clk 0:02:46]}  c5 {[%clk 0:02:00]} 14. Rd1 {[%clk 0:02:35]}  Qc8 {[%clk 0:02:01]} 15. Bg5 {[%clk 0:02:32]}  Bxg5 {[%clk 0:01:58]} 16. Nxg5 {[%clk 0:02:32]}  Bf5 {[%clk 0:01:59]} 17. Qe2 {[%clk 0:02:29]}  h6 {[%clk 0:01:59]} 18. Nge4 {[%clk 0:02:27]}  c4 {[%clk 0:01:51]} 19. h3 {[%clk 0:01:47]}  Re8 {[%clk 0:01:48]} 20. f4 {[%clk 0:01:48]}  Rb8 {[%clk 0:01:21]} 21. Qf3 {[%clk 0:01:41]}  Qb7 {[%clk 0:01:05]} 22. Rd2 {[%clk 0:01:17]}  f6 {[%clk 0:00:36]} 23. g4 {[%clk 0:00:46]}  Bh7 {[%clk 0:00:36]} 24. Rad1 {[%clk 0:00:40]}  f5 {[%clk 0:00:31]} 25. gxf5 {[%clk 0:00:36]}  Bxf5 {[%clk 0:00:32]} 26. Rd8 {[%clk 0:00:34]}  Kh8 {[%clk 0:00:21]} 27. Rxe8+ {[%clk 0:00:28]}  Rxe8 {[%clk 0:00:22]} 28. Qh5 {[%clk 0:00:29]}  Rf8 {[%clk 0:00:17]} 29. Nf6 {[%clk 0:00:19]}  Bc2 {[%clk 0:00:04]} 30. Rd2 {[%clk 0:00:16]}  Bd3 {[%clk 0:00:04]} 31. Rg2 {[%clk 0:00:14]}  c5 {[%clk 0:00:02]} 32. Ne8 {[%clk 0:00:10]}  Qf7 {[%clk 0:00:02]} 33. Nxg7 {[%clk 0:00:10]}  Qxh5 {[%clk 0:00:02]} 34. Nxh5 {[%clk 0:00:11]}  Rf5 {[%clk 0:00:03]} 35. Nf6 {[%clk 0:00:11]}  Rxf6 {[%clk 0:00:01]} 36. exf6 {[%clk 0:00:11]}  Nd7 {[%clk 0:00:02]} 37. Nd5 {[%clk 0:00:09]}  Be4 {[%clk 0:00:02]} 38. Rg7 {[%clk 0:00:09]}  Nf8 {[%clk 0:00:01]} 39. Ne7 {[%clk 0:00:07]}  Ne6 {[%clk 0:00:02]} 40. Ng6+ {[%clk 0:00:07]}  Bxg6 {[%clk 0:00:02]} 41. Rxg6 {[%clk 0:00:08]}  Nxf4 {[%clk 0:00:02]} 42. Rxh6+ {[%clk 0:00:08]}  Kg8 {[%clk 0:00:03]} 43. Rh4 {[%clk 0:00:08]}  Ne2+ {[%clk 0:00:03]} 44. Kf2 {[%clk 0:00:09]}  c3 {[%clk 0:00:03]} 45. bxc3 {[%clk 0:00:08]}  Nxc3 {[%clk 0:00:04]} 46. Rc4 {[%clk 0:00:08]}  Kf7 {[%clk 0:00:02]} 47. Rxc3 {[%clk 0:00:08]} 1-0


[Site "https://www.chess.com"]

[Event "Titled Tuesday Blitz June 27 Early 2023"]
[White "Ahmad, Khagan"]
[Black "Tanenbaum, Zachary"]
[WhiteFideId "13431552"]
[BlackFideId "2060850"]
[WhiteElo "2623"]
[BlackElo "2732"]
[Result "1-0"]
[Round "10"]
[TimeControl "180+2"]
[Date "2023.06.27"]
[WhiteClock "0:00:09"]
[BlackClock "0:00:02"]
[Board "38"]

1. e4 {[%clk 0:03:00]}  e5 {[%clk 0:02:59]} 2. Nf3 {[%clk 0:03:00]}  Nc6 {[%clk 0:02:59]} 3. Bb5 {[%clk 0:03:00]}  a6 {[%clk 0:02:59]} 4. Ba4 {[%clk 0:03:00]}  d6 {[%clk 0:03:00]} 5. d4 {[%clk 0:02:53]}  b5 {[%clk 0:02:59]} 6. Bb3 {[%clk 0:02:50]}  Nxd4 {[%clk 0:02:59]} 7. Nxd4 {[%clk 0:02:51]}  exd4 {[%clk 0:02:59]} 8. Bd5 {[%clk 0:02:46]}  Rb8 {[%clk 0:02:59]} 9. Qxd4 {[%clk 0:02:45]}  Nf6 {[%clk 0:02:59]} 10. Bg5 {[%clk 0:02:35]}  Be7 {[%clk 0:02:58]} 11. Bc6+ {[%clk 0:02:10]}  Bd7 {[%clk 0:02:57]} 12. Bxd7+ {[%clk 0:02:11]}  Qxd7 {[%clk 0:02:58]} 13. Nc3 {[%clk 0:02:10]}  O-O {[%clk 0:02:56]} 14. e5 {[%clk 0:02:10]}  Qe6 {[%clk 0:02:54]} 15. f4 {[%clk 0:01:46]}  c5 {[%clk 0:02:37]} 16. Qe3 {[%clk 0:01:42]}  Ng4 {[%clk 0:02:32]} 17. Qe2 {[%clk 0:01:23]}  Bxg5 {[%clk 0:02:31]} 18. fxg5 {[%clk 0:01:24]}  Qxe5 {[%clk 0:02:13]} 19. Qxe5 {[%clk 0:01:16]}  Nxe5 {[%clk 0:02:14]} 20. O-O-O {[%clk 0:01:16]}  Rbd8 {[%clk 0:02:07]} 21. Ne4 {[%clk 0:01:14]}  Nc4 {[%clk 0:02:04]} 22. b3 {[%clk 0:00:56]}  Ne3 {[%clk 0:02:04]} 23. Rd2 {[%clk 0:00:48]}  Rd7 {[%clk 0:01:47]} 24. Nxc5 {[%clk 0:00:40]}  Ra7 {[%clk 0:01:30]} 25. Rxd6 {[%clk 0:00:39]}  Nxg2 {[%clk 0:01:29]} 26. Rxa6 {[%clk 0:00:35]}  Rc7 {[%clk 0:01:28]} 27. b4 {[%clk 0:00:35]}  Nf4 {[%clk 0:01:21]} 28. Rd1 {[%clk 0:00:33]}  g6 {[%clk 0:00:59]} 29. Rd7 {[%clk 0:00:28]}  Rxd7 {[%clk 0:00:43]} 30. Nxd7 {[%clk 0:00:28]}  Rd8 {[%clk 0:00:43]} 31. Nf6+ {[%clk 0:00:24]}  Kg7 {[%clk 0:00:42]} 32. Rb6 {[%clk 0:00:24]}  Nd5 {[%clk 0:00:31]} 33. Rxb5 {[%clk 0:00:22]}  Nxf6 {[%clk 0:00:30]} 34. gxf6+ {[%clk 0:00:23]}  Kxf6 {[%clk 0:00:31]} 35. a4 {[%clk 0:00:23]}  g5 {[%clk 0:00:27]} 36. a5 {[%clk 0:00:24]}  h5 {[%clk 0:00:27]} 37. a6 {[%clk 0:00:23]}  h4 {[%clk 0:00:22]} 38. a7 {[%clk 0:00:17]}  Ra8 {[%clk 0:00:21]} 39. Ra5 {[%clk 0:00:16]}  g4 {[%clk 0:00:21]} 40. Ra3 {[%clk 0:00:13]}  g3 {[%clk 0:00:16]} 41. hxg3 {[%clk 0:00:14]}  h3 {[%clk 0:00:12]} 42. g4 {[%clk 0:00:13]}  h2 {[%clk 0:00:11]} 43. Rh3 {[%clk 0:00:13]}  Rxa7 {[%clk 0:00:12]} 44. Rxh2 {[%clk 0:00:13]}  Kg5 {[%clk 0:00:11]} 45. Rg2 {[%clk 0:00:10]}  Ra4 {[%clk 0:00:07]} 46. c3 {[%clk 0:00:10]}  Ra6 {[%clk 0:00:04]} 47. Kb2 {[%clk 0:00:10]}  Rf6 {[%clk 0:00:03]} 48. Kb3 {[%clk 0:00:10]}  Rf3 {[%clk 0:00:02]} 49. b5 {[%clk 0:00:10]}  Rf1 {[%clk 0:00:01]} 50. c4 {[%clk 0:00:08]}  Rb1+ {[%clk 0:00:01]} 51. Rb2 {[%clk 0:00:08]}  Ra1 {[%clk 0:00:01]} 52. b6 {[%clk 0:00:08]}  Ra8 {[%clk 0:00:02]} 53. c5 {[%clk 0:00:07]}  Kxg4 {[%clk 0:00:01]} 54. Kc4 {[%clk 0:00:08]}  f5 {[%clk 0:00:02]} 55. b7 {[%clk 0:00:08]}  Rb8 {[%clk 0:00:01]} 56. c6 {[%clk 0:00:09]}  f4 {[%clk 0:00:02]} 57. c7 {[%clk 0:00:09]}  Rxb7 {[%clk 0:00:02]} 58. c8=Q+ {[%clk 0:00:10]}  Rd7 {[%clk 0:00:02]} 59. Qxd7+ {[%clk 0:00:10]}  Kg3 {[%clk 0:00:02]} 60. Qg7+ {[%clk 0:00:09]}  Kf3 {[%clk 0:00:01]} 61. Qg2+ {[%clk 0:00:09]}  Ke3 {[%clk 0:00:02]} 62. Qe2# {[%clk 0:00:09]} 1-0


[Site "https://www.chess.com"]

[Event "Titled Tuesday Blitz June 27 Early 2023"]
[White "Gedajlovic, Max"]
[Black "Gubajdullin, Alexei"]
[WhiteFideId "2616840"]
[BlackFideId "4141202"]
[WhiteElo "2705"]
[BlackElo "2602"]
[Result "0-1"]
[Round "10"]
[TimeControl "180+2"]
[Date "2023.06.27"]
[WhiteClock "0:00:08"]
[BlackClock "0:00:26"]
[Board "40"]

1. d4 {[%clk 0:03:00]}  f5 {[%clk 0:02:59]} 2. Bg5 {[%clk 0:02:59]}  c6 {[%clk 0:02:52]} 3. e3 {[%clk 0:02:56]}  Qb6 {[%clk 0:02:50]} 4. Bd3 {[%clk 0:02:52]}  g6 {[%clk 0:02:48]} 5. Nf3 {[%clk 0:02:50]}  Qxb2 {[%clk 0:02:42]} 6. Nbd2 {[%clk 0:02:50]}  Qb6 {[%clk 0:02:38]} 7. h4 {[%clk 0:02:50]}  Bg7 {[%clk 0:02:33]} 8. h5 {[%clk 0:02:33]}  h6 {[%clk 0:02:28]} 9. hxg6 {[%clk 0:02:33]}  hxg5 {[%clk 0:02:25]} 10. Rxh8 {[%clk 0:02:34]}  Bxh8 {[%clk 0:02:25]} 11. Nxg5 {[%clk 0:02:35]}  Bg7 {[%clk 0:02:11]} 12. Bxf5 {[%clk 0:02:29]}  Qa5 {[%clk 0:02:09]} 13. Qf3 {[%clk 0:02:21]}  Nh6 {[%clk 0:02:07]} 14. g4 {[%clk 0:02:07]}  e6 {[%clk 0:01:54]} 15. Nf7 {[%clk 0:02:06]}  Nxf7 {[%clk 0:01:53]} 16. gxf7+ {[%clk 0:02:04]}  Kf8 {[%clk 0:01:53]} 17. Bd3 {[%clk 0:01:57]}  c5 {[%clk 0:01:44]} 18. Ke2 {[%clk 0:01:52]}  cxd4 {[%clk 0:01:37]} 19. Rh1 {[%clk 0:01:50]}  Nc6 {[%clk 0:01:35]} 20. Nc4 {[%clk 0:01:42]}  Qd5 {[%clk 0:01:26]} 21. e4 {[%clk 0:01:40]}  Qc5 {[%clk 0:01:23]} 22. Rh5 {[%clk 0:01:11]}  d5 {[%clk 0:01:10]} 23. Qh3 {[%clk 0:00:21]}  Qe7 {[%clk 0:01:00]} 24. Rh8+ {[%clk 0:00:11]}  Bxh8 {[%clk 0:00:57]} 25. Qxh8+ {[%clk 0:00:11]}  Kxf7 {[%clk 0:00:56]} 26. Qh5+ {[%clk 0:00:06]}  Kg8 {[%clk 0:00:54]} 27. Nd2 {[%clk 0:00:04]}  Bd7 {[%clk 0:00:51]} 28. Nf3 {[%clk 0:00:02]}  Rf8 {[%clk 0:00:47]} 29. e5 {[%clk 0:00:01]}  Qf7 {[%clk 0:00:43]} 30. Qg5+ {[%clk 0:00:02]}  Qg7 {[%clk 0:00:41]} 31. Qh5 {[%clk 0:00:02]}  Rxf3 {[%clk 0:00:35]} 32. Kxf3 {[%clk 0:00:03]}  Nxe5+ {[%clk 0:00:32]} 33. Ke2 {[%clk 0:00:04]}  Qxg4+ {[%clk 0:00:29]} 34. Qxg4+ {[%clk 0:00:04]}  Nxg4 {[%clk 0:00:29]} 35. f4 {[%clk 0:00:05]}  Kf7 {[%clk 0:00:28]} 36. Kf3 {[%clk 0:00:05]}  Nh6 {[%clk 0:00:28]} 37. Kg3 {[%clk 0:00:06]}  Kf6 {[%clk 0:00:28]} 38. Kh4 {[%clk 0:00:07]}  Nf5+ {[%clk 0:00:28]} 39. Kh5 {[%clk 0:00:07]}  b5 {[%clk 0:00:26]} 40. a3 {[%clk 0:00:07]}  a5 {[%clk 0:00:25]} 41. Kg4 {[%clk 0:00:08]}  b4 {[%clk 0:00:26]} 42. axb4 {[%clk 0:00:09]}  a4 {[%clk 0:00:26]} 43. Kf3 {[%clk 0:00:08]}  a3 {[%clk 0:00:26]} 0-1


[Site "https://www.chess.com"]

[Event "Titled Tuesday Blitz June 27 Early 2023"]
[White "Lavrik, Dmitry"]
[Black "Fonseca Manrique, Enrique"]
[WhiteFideId "24113190"]
[BlackFideId "5114330"]
[WhiteElo "2700"]
[BlackElo "2583"]
[Result "1-0"]
[Round "10"]
[TimeControl "180+2"]
[Date "2023.06.27"]
[WhiteClock "0:00:59"]
[BlackClock "0:00:24"]
[Board "42"]

1. c4 {[%clk 0:03:00]}  e5 {[%clk 0:02:59]} 2. g3 {[%clk 0:03:00]}  Nf6 {[%clk 0:02:59]} 3. Bg2 {[%clk 0:02:59]}  Nc6 {[%clk 0:03:00]} 4. Nf3 {[%clk 0:02:41]}  h6 {[%clk 0:02:53]} 5. d3 {[%clk 0:02:35]}  Bb4+ {[%clk 0:02:53]} 6. Nbd2 {[%clk 0:02:35]}  a5 {[%clk 0:02:51]} 7. O-O {[%clk 0:02:34]}  O-O {[%clk 0:02:51]} 8. a3 {[%clk 0:02:32]}  Bc5 {[%clk 0:02:48]} 9. b3 {[%clk 0:02:32]}  d6 {[%clk 0:02:46]} 10. Bb2 {[%clk 0:02:32]}  Bf5 {[%clk 0:02:38]} 11. Qc2 {[%clk 0:02:22]}  Qc8 {[%clk 0:02:21]} 12. Rfe1 {[%clk 0:02:18]}  Ng4 {[%clk 0:02:08]} 13. e3 {[%clk 0:02:17]}  Re8 {[%clk 0:02:07]} 14. h3 {[%clk 0:02:11]}  Nf6 {[%clk 0:02:06]} 15. Kh2 {[%clk 0:02:11]}  Bb6 {[%clk 0:01:54]} 16. Ne4 {[%clk 0:02:03]}  Nxe4 {[%clk 0:01:49]} 17. dxe4 {[%clk 0:02:03]}  Be6 {[%clk 0:01:45]} 18. Nh4 {[%clk 0:02:03]}  Qd8 {[%clk 0:01:28]} 19. Rad1 {[%clk 0:02:00]}  Qf6 {[%clk 0:01:27]} 20. f4 {[%clk 0:02:00]}  Nb8 {[%clk 0:01:16]} 21. c5 {[%clk 0:01:38]}  Bxc5 {[%clk 0:01:09]} 22. fxe5 {[%clk 0:01:38]}  Qe7 {[%clk 0:01:09]} 23. Nf5 {[%clk 0:01:25]}  Bxf5 {[%clk 0:01:06]} 24. exf5 {[%clk 0:01:25]}  dxe5 {[%clk 0:01:00]} 25. f6 {[%clk 0:01:24]}  gxf6 {[%clk 0:00:59]} 26. Qf5 {[%clk 0:01:24]}  Qf8 {[%clk 0:00:50]} 27. Bxb7 {[%clk 0:01:02]}  Ra7 {[%clk 0:00:50]} 28. Be4 {[%clk 0:01:03]}  Qg7 {[%clk 0:00:50]} 29. Rc1 {[%clk 0:01:03]}  Bb6 {[%clk 0:00:45]} 30. Rc4 {[%clk 0:01:03]}  Na6 {[%clk 0:00:33]} 31. Bc6 {[%clk 0:01:02]}  Qf8 {[%clk 0:00:26]} 32. Rg4+ {[%clk 0:00:59]}  Kh8 {[%clk 0:00:24]} 33. Qxf6+ {[%clk 0:00:59]} 1-0


[Site "https://www.chess.com"]

[Event "Titled Tuesday Blitz June 27 Early 2023"]
[White "Sargsyan, Anna M."]
[Black "Korchmar, Vasiliy"]
[WhiteFideId "13308130"]
[BlackFideId "24131750"]
[WhiteElo "2572"]
[BlackElo "2691"]
[Result "0-1"]
[Round "10"]
[TimeControl "180+2"]
[Date "2023.06.27"]
[WhiteClock "0:00:02"]
[BlackClock "0:00:27"]
[Board "43"]

1. d4 {[%clk 0:03:00]}  d5 {[%clk 0:02:59]} 2. c4 {[%clk 0:03:00]}  c6 {[%clk 0:02:59]} 3. cxd5 {[%clk 0:02:54]}  cxd5 {[%clk 0:03:00]} 4. Bf4 {[%clk 0:02:54]}  Nf6 {[%clk 0:03:00]} 5. e3 {[%clk 0:02:54]}  Nc6 {[%clk 0:03:01]} 6. Nc3 {[%clk 0:02:55]}  Bg4 {[%clk 0:02:56]} 7. f3 {[%clk 0:02:53]}  Bd7 {[%clk 0:02:56]} 8. Bd3 {[%clk 0:02:53]}  e6 {[%clk 0:02:56]} 9. Nge2 {[%clk 0:02:54]}  Be7 {[%clk 0:02:56]} 10. O-O {[%clk 0:02:54]}  O-O {[%clk 0:02:57]} 11. Rc1 {[%clk 0:02:54]}  Rc8 {[%clk 0:02:57]} 12. Qe1 {[%clk 0:02:53]}  Na5 {[%clk 0:02:55]} 13. h4 {[%clk 0:02:49]}  Nh5 {[%clk 0:02:48]} 14. Bg3 {[%clk 0:02:39]}  Nxg3 {[%clk 0:02:45]} 15. Qxg3 {[%clk 0:02:40]}  Bxh4 {[%clk 0:02:45]} 16. Qh2 {[%clk 0:02:41]}  g6 {[%clk 0:02:41]} 17. g3 {[%clk 0:02:34]}  Bg5 {[%clk 0:02:39]} 18. f4 {[%clk 0:02:30]}  Bf6 {[%clk 0:02:39]} 19. Kf2 {[%clk 0:02:30]}  h5 {[%clk 0:02:20]} 20. Rh1 {[%clk 0:02:28]}  Kg7 {[%clk 0:02:18]} 21. g4 {[%clk 0:01:44]}  Rh8 {[%clk 0:02:17]} 22. gxh5 {[%clk 0:01:41]}  Rxh5 {[%clk 0:02:18]} 23. Qg2 {[%clk 0:01:41]}  Bh4+ {[%clk 0:02:12]} 24. Kf3 {[%clk 0:01:41]}  Nc4 {[%clk 0:02:08]} 25. Ng3 {[%clk 0:01:32]}  Rh6 {[%clk 0:02:03]} 26. Rcg1 {[%clk 0:01:29]}  b5 {[%clk 0:01:53]} 27. Nh5+ {[%clk 0:01:20]}  Kf8 {[%clk 0:01:43]} 28. Ng3 {[%clk 0:00:43]}  b4 {[%clk 0:01:43]} 29. Nd1 {[%clk 0:00:39]}  Nd6 {[%clk 0:01:26]} 30. Nf1 {[%clk 0:00:27]}  Bb5 {[%clk 0:01:15]} 31. Bxb5 {[%clk 0:00:22]}  Nxb5 {[%clk 0:01:16]} 32. Qd2 {[%clk 0:00:19]}  a5 {[%clk 0:01:10]} 33. Nh2 {[%clk 0:00:18]}  Nd6 {[%clk 0:01:07]} 34. Ng4 {[%clk 0:00:19]}  Ne4 {[%clk 0:01:08]} 35. Qd3 {[%clk 0:00:15]}  Rh5 {[%clk 0:01:07]} 36. Qa6 {[%clk 0:00:10]}  Rc2 {[%clk 0:01:04]} 37. Rg2 {[%clk 0:00:09]}  Nd2+ {[%clk 0:00:55]} 38. Rxd2 {[%clk 0:00:08]}  Rxd2 {[%clk 0:00:56]} 39. Ne5 {[%clk 0:00:09]}  Kg7 {[%clk 0:00:41]} 40. Qc6 {[%clk 0:00:08]}  Qf6 {[%clk 0:00:40]} 41. Qc1 {[%clk 0:00:05]}  Qf5 {[%clk 0:00:28]} 42. Qxd2 {[%clk 0:00:02]}  Qe4+ {[%clk 0:00:28]} 43. Ke2 {[%clk 0:00:03]}  Qxh1 {[%clk 0:00:29]} 44. Qc1 {[%clk 0:00:02]}  Bf6 {[%clk 0:00:28]} 45. Kd3 {[%clk 0:00:02]}  Bxe5 {[%clk 0:00:27]} 46. dxe5 {[%clk 0:00:02]}  Qe4+ {[%clk 0:00:28]} 47. Kd2 {[%clk 0:00:03]}  Rh2+ {[%clk 0:00:28]} 48. Ke1 {[%clk 0:00:02]}  Qh1# {[%clk 0:00:27]} 0-1


[Site "https://www.chess.com"]

[Event "Titled Tuesday Blitz June 27 Early 2023"]
[White "whiteglovethief"]
[Black "Liyanage, Ranindu Dilshan"]
[BlackFideId "9915834"]
[WhiteElo "2472"]
[BlackElo "2672"]
[Result "1-0"]
[Round "10"]
[TimeControl "180+2"]
[Date "2023.06.27"]
[WhiteClock "0:00:37"]
[BlackClock "0:00:58"]
[Board "46"]

1. d4 {[%clk 0:03:00]}  e6 {[%clk 0:02:58]} 2. e4 {[%clk 0:03:00]}  g6 {[%clk 0:02:57]} 3. Nc3 {[%clk 0:02:59]}  Bg7 {[%clk 0:02:58]} 4. f4 {[%clk 0:02:59]}  a6 {[%clk 0:02:57]} 5. Nf3 {[%clk 0:02:57]}  d6 {[%clk 0:02:57]} 6. Bd3 {[%clk 0:02:57]}  b5 {[%clk 0:02:57]} 7. O-O {[%clk 0:02:57]}  Ne7 {[%clk 0:02:54]} 8. Qe1 {[%clk 0:02:56]}  c5 {[%clk 0:02:54]} 9. dxc5 {[%clk 0:02:54]}  dxc5 {[%clk 0:02:54]} 10. e5 {[%clk 0:02:53]}  Bb7 {[%clk 0:02:48]} 11. Ne4 {[%clk 0:02:45]}  O-O {[%clk 0:02:33]} 12. Nxc5 {[%clk 0:02:35]}  Bd5 {[%clk 0:02:29]} 13. Ne4 {[%clk 0:02:31]}  Nf5 {[%clk 0:02:25]} 14. g4 {[%clk 0:02:20]}  Qb6+ {[%clk 0:02:24]} 15. Qf2 {[%clk 0:02:13]}  Qxf2+ {[%clk 0:02:23]} 16. Kxf2 {[%clk 0:02:08]}  Ne7 {[%clk 0:02:23]} 17. Nf6+ {[%clk 0:02:05]}  Bxf6 {[%clk 0:02:14]} 18. exf6 {[%clk 0:02:06]}  Nec6 {[%clk 0:02:14]} 19. Ne5 {[%clk 0:02:04]}  Nd7 {[%clk 0:02:13]} 20. Nxd7 {[%clk 0:02:04]}  Rfd8 {[%clk 0:02:08]} 21. Nb6 {[%clk 0:02:04]}  Rab8 {[%clk 0:02:06]} 22. Nxd5 {[%clk 0:02:04]}  exd5 {[%clk 0:02:05]} 23. c3 {[%clk 0:02:02]}  d4 {[%clk 0:02:06]} 24. Be4 {[%clk 0:02:01]}  Na5 {[%clk 0:02:05]} 25. g5 {[%clk 0:01:56]}  Rbc8 {[%clk 0:02:03]} 26. cxd4 {[%clk 0:01:53]}  Rxd4 {[%clk 0:02:04]} 27. Bf3 {[%clk 0:01:45]}  Rc2+ {[%clk 0:02:03]} 28. Kg3 {[%clk 0:01:45]}  Nc4 {[%clk 0:02:00]} 29. Rd1 {[%clk 0:01:37]}  Rd6 {[%clk 0:01:56]} 30. b3 {[%clk 0:01:18]}  Rxd1 {[%clk 0:01:56]} 31. Bxd1 {[%clk 0:01:18]}  Rc3+ {[%clk 0:01:56]} 32. Kf2 {[%clk 0:01:18]}  Nd6 {[%clk 0:01:56]} 33. Bb2 {[%clk 0:01:05]}  Rh3 {[%clk 0:01:55]} 34. Kg2 {[%clk 0:01:04]}  Rd3 {[%clk 0:01:54]} 35. Be5 {[%clk 0:01:04]}  Rd2+ {[%clk 0:01:50]} 36. Kf3 {[%clk 0:01:02]}  Nf5 {[%clk 0:01:49]} 37. Rc1 {[%clk 0:01:01]}  h5 {[%clk 0:01:48]} 38. Rc8+ {[%clk 0:00:57]}  Kh7 {[%clk 0:01:48]} 39. Bc2 {[%clk 0:00:54]}  Nh4+ {[%clk 0:01:40]} 40. Ke3 {[%clk 0:00:53]}  Rxh2 {[%clk 0:01:40]} 41. Be4 {[%clk 0:00:46]}  Rxa2 {[%clk 0:01:23]} 42. Rf8 {[%clk 0:00:45]}  Ra3 {[%clk 0:01:22]} 43. Rxf7+ {[%clk 0:00:44]}  Kg8 {[%clk 0:01:23]} 44. Rg7+ {[%clk 0:00:42]}  Kh8 {[%clk 0:01:23]} 45. Bd5 {[%clk 0:00:40]}  Nf5+ {[%clk 0:01:22]} 46. Ke4 {[%clk 0:00:40]}  Ra2 {[%clk 0:01:12]} 47. f7 {[%clk 0:00:38]}  Re2+ {[%clk 0:01:07]} 48. Kf3 {[%clk 0:00:38]}  Re3+ {[%clk 0:00:58]} 49. Kf2 {[%clk 0:00:37]} 1-0


[Site "https://www.chess.com"]

[Event "Titled Tuesday Blitz June 27 Early 2023"]
[White "Taspinar, Yanki"]
[Black "Manukian, Artak"]
[WhiteFideId "34561188"]
[BlackFideId "13301373"]
[WhiteElo "2661"]
[BlackElo "2447"]
[Result "1-0"]
[Round "10"]
[TimeControl "180+2"]
[Date "2023.06.27"]
[WhiteClock "0:00:43"]
[BlackClock "0:00:14"]
[Board "47"]

1. Nf3 {[%clk 0:02:42]}  g6 {[%clk 0:02:59]} 2. g3 {[%clk 0:02:42]}  Bg7 {[%clk 0:03:00]} 3. Bg2 {[%clk 0:02:40]}  d6 {[%clk 0:03:01]} 4. e4 {[%clk 0:02:38]}  Nf6 {[%clk 0:03:02]} 5. Nc3 {[%clk 0:02:37]}  c5 {[%clk 0:03:00]} 6. O-O {[%clk 0:02:37]}  O-O {[%clk 0:03:00]} 7. d4 {[%clk 0:02:37]}  cxd4 {[%clk 0:02:59]} 8. Nxd4 {[%clk 0:02:38]}  Nc6 {[%clk 0:02:56]} 9. h3 {[%clk 0:02:39]}  Nxd4 {[%clk 0:02:51]} 10. Qxd4 {[%clk 0:02:39]}  Be6 {[%clk 0:02:51]} 11. Qa4 {[%clk 0:02:32]}  Qd7 {[%clk 0:02:45]} 12. Qb4 {[%clk 0:02:20]}  a5 {[%clk 0:02:40]} 13. Qb5 {[%clk 0:02:16]}  Qxb5 {[%clk 0:02:38]} 14. Nxb5 {[%clk 0:02:17]}  Bc4 {[%clk 0:02:39]} 15. a4 {[%clk 0:02:12]}  Bxf1 {[%clk 0:02:38]} 16. Kxf1 {[%clk 0:02:13]}  Rac8 {[%clk 0:02:34]} 17. c3 {[%clk 0:02:10]}  Nd7 {[%clk 0:02:32]} 18. Be3 {[%clk 0:02:04]}  Nc5 {[%clk 0:02:31]} 19. Ke2 {[%clk 0:02:03]}  h5 {[%clk 0:02:23]} 20. g4 {[%clk 0:01:59]}  hxg4 {[%clk 0:02:23]} 21. hxg4 {[%clk 0:02:00]}  Rfd8 {[%clk 0:02:03]} 22. g5 {[%clk 0:01:59]}  Kf8 {[%clk 0:02:00]} 23. f4 {[%clk 0:01:51]}  b6 {[%clk 0:01:46]} 24. f5 {[%clk 0:01:51]}  Be5 {[%clk 0:01:41]} 25. fxg6 {[%clk 0:01:39]}  fxg6 {[%clk 0:01:41]} 26. Bh3 {[%clk 0:01:40]}  e6 {[%clk 0:01:10]} 27. Bxc5 {[%clk 0:01:28]}  dxc5 {[%clk 0:00:57]} 28. Bxe6 {[%clk 0:01:28]}  Rb8 {[%clk 0:00:51]} 29. Rf1+ {[%clk 0:01:27]}  Ke7 {[%clk 0:00:51]} 30. Bc4 {[%clk 0:01:03]}  Rf8 {[%clk 0:00:50]} 31. Rd1 {[%clk 0:01:03]}  Rbd8 {[%clk 0:00:49]} 32. Bd5 {[%clk 0:00:56]}  Bb8 {[%clk 0:00:40]} 33. b4 {[%clk 0:00:49]}  Rh8 {[%clk 0:00:19]} 34. bxc5 {[%clk 0:00:48]}  bxc5 {[%clk 0:00:19]} 35. Kd3 {[%clk 0:00:48]}  Rh5 {[%clk 0:00:18]} 36. Rg1 {[%clk 0:00:47]}  Bf4 {[%clk 0:00:17]} 37. Na7 {[%clk 0:00:46]}  Rdh8 {[%clk 0:00:16]} 38. Kc4 {[%clk 0:00:44]}  Rxg5 {[%clk 0:00:15]} 39. Rf1 {[%clk 0:00:44]}  Be5 {[%clk 0:00:15]} 40. Rf7+ {[%clk 0:00:43]}  Kd6 {[%clk 0:00:14]} 41. Nb5# {[%clk 0:00:43]} 1-0


[Site "https://www.chess.com"]

[Event "Titled Tuesday Blitz June 27 Early 2023"]
[White "Pap, Gyula"]
[Black "Arat, Ufuk Sezen"]
[WhiteFideId "725323"]
[BlackFideId "6309089"]
[WhiteElo "2912"]
[BlackElo "2561"]
[Result "0-1"]
[Round "10"]
[TimeControl "180+2"]
[Date "2023.06.27"]
[WhiteClock "0:00:00"]
[BlackClock "0:00:03"]
[Board "49"]

1. d4 {[%clk 0:03:00]}  Nf6 {[%clk 0:02:58]} 2. c4 {[%clk 0:03:01]}  e6 {[%clk 0:02:58]} 3. Nc3 {[%clk 0:03:02]}  Bb4 {[%clk 0:02:58]} 4. Qb3 {[%clk 0:03:02]}  c5 {[%clk 0:02:56]} 5. dxc5 {[%clk 0:03:02]}  Bxc5 {[%clk 0:02:56]} 6. Nf3 {[%clk 0:03:01]}  O-O {[%clk 0:02:53]} 7. Bg5 {[%clk 0:03:02]}  Nc6 {[%clk 0:02:52]} 8. e3 {[%clk 0:02:56]}  h6 {[%clk 0:02:46]} 9. Bh4 {[%clk 0:02:56]}  Be7 {[%clk 0:02:26]} 10. Be2 {[%clk 0:02:56]}  d5 {[%clk 0:02:10]} 11. cxd5 {[%clk 0:02:52]}  Nxd5 {[%clk 0:01:59]} 12. Bxe7 {[%clk 0:02:52]}  Ncxe7 {[%clk 0:01:53]} 13. O-O {[%clk 0:02:52]}  Nxc3 {[%clk 0:01:53]} 14. Qxc3 {[%clk 0:02:53]}  Nc6 {[%clk 0:01:52]} 15. b4 {[%clk 0:02:39]}  a6 {[%clk 0:01:48]} 16. a4 {[%clk 0:02:39]}  Qb6 {[%clk 0:01:26]} 17. b5 {[%clk 0:02:37]}  axb5 {[%clk 0:01:21]} 18. axb5 {[%clk 0:02:38]}  Rxa1 {[%clk 0:01:21]} 19. Rxa1 {[%clk 0:02:39]}  Ne7 {[%clk 0:01:21]} 20. Ne5 {[%clk 0:02:31]}  Nd5 {[%clk 0:01:18]} 21. Qa3 {[%clk 0:02:29]}  Rd8 {[%clk 0:01:09]} 22. g3 {[%clk 0:02:29]}  Qd6 {[%clk 0:01:02]} 23. Qb2 {[%clk 0:02:03]}  f6 {[%clk 0:00:59]} 24. Nc4 {[%clk 0:02:01]}  Qe7 {[%clk 0:00:59]} 25. Bf3 {[%clk 0:01:58]}  e5 {[%clk 0:00:58]} 26. Ra8 {[%clk 0:01:27]}  Be6 {[%clk 0:00:53]} 27. Qa1 {[%clk 0:01:28]}  Rxa8 {[%clk 0:00:46]} 28. Qxa8+ {[%clk 0:01:27]}  Kh7 {[%clk 0:00:43]} 29. Na5 {[%clk 0:01:21]}  Qb4 {[%clk 0:00:19]} 30. Kg2 {[%clk 0:00:47]}  Qd2 {[%clk 0:00:11]} 31. Nc4 {[%clk 0:00:48]}  Qc2 {[%clk 0:00:08]} 32. e4 {[%clk 0:00:11]}  Qxc4 {[%clk 0:00:05]} 33. exd5 {[%clk 0:00:12]}  Bxd5 {[%clk 0:00:06]} 34. Qa5 {[%clk 0:00:04]}  e4 {[%clk 0:00:04]} 35. Bg4 {[%clk 0:00:04]}  e3+ {[%clk 0:00:04]} 36. Kh3 {[%clk 0:00:04]}  e2 {[%clk 0:00:04]} 37. Bf5+ {[%clk 0:00:01]}  g6 {[%clk 0:00:03]} 38. Qd8 {[%clk 0:00:02]}  gxf5 {[%clk 0:00:02]} 39. Qe7+ {[%clk 0:00:01]}  Bf7 {[%clk 0:00:03]} 40. Qxf6 {[%clk 0:00:00]}  Qe6 {[%clk 0:00:03]} 0-1


[Site "https://www.chess.com"]